bitfinex/quotes_SOLUSD_20241125
["timestamp","ask_amount","ask_price","bid_price","bid_amount"]
[1732497057300,6.2587,249.44,249.34,12.9351062]
[1732497057509,6.2587,249.44,249.35,12.9351062]
[1732497057695,6.2587,249.44,249.36,12.9351062]
[1732497057891,6.2587,249.44,249.3,2.4067]
[1732497057892,16.342,249.46,249.38,12.9351062]
[1732497058281,16.342,249.46,249.37,12.9351062]
[1732497058996,16.342,249.46,249.38,12.9351062]
[1732497059379,16.342,249.46,249.35,12.9351062]
[1732497060406,16.342,249.46,249.33,12.9351062]
[1732497060702,16.342,249.46,249.32,12.9351062]
[1732497061388,16.342,249.46,249.37,12.9351062]
[1732497061594,16.342,249.46,249.38,12.9351062]
[1732497061909,16.342,249.46,249.33,12.9351062]
[1732497062081,16.342,249.46,249.32,12.9351062]
[1732497062493,16.342,249.46,249.31,12.9351062]
[1732497063009,16.342,249.46,249.33,12.9351062]
[1732497063704,16.342,249.46,249.38,12.9351062]
[1732497063905,16.342,249.46,249.39,12.9351062]
[1732497064206,16.342,249.46,249.4,12.9351062]
[1732497064401,16.342,249.46,249.42,8.08280375]
[1732497064943,6.5194,249.51,249.43,8.08280375]
[1732497065488,6.5194,249.51,249.43,10.48820375]
[1732497065887,15.7082,249.53,249.43,10.48820375]
[1732497065888,15.7082,249.53,249.47,8.08280375]
[1732497066111,6.1352,249.58,249.51,8.08280375]
[1732497066325,15.2666,249.6,249.52,8.08280375]
[1732497066627,15.2666,249.6,249.5,8.08280375]
[1732497067130,15.2666,249.6,249.51,8.08280375]
[1732497067332,15.2666,249.6,249.52,8.08280375]
[1732497067503,15.2666,249.6,249.5,8.08280375]
[1732497067704,15.2666,249.6,249.47,10.48780375]
[1732497068226,15.2666,249.6,249.49,8.08280375]
[1732497068527,15.2666,249.6,249.47,8.08280375]
[1732497068714,15.2666,249.6,249.46,10.48790375]
[1732497069520,15.2666,249.6,249.48,8.08280375]
[1732497070040,15.2666,249.6,249.49,8.08280375]
[1732497071028,15.2666,249.6,249.52,8.08280375]
[1732497071212,15.2666,249.6,249.53,8.08280375]
[1732497071414,15.2666,249.6,249.54,8.08280375]
[1732497071926,15.2666,249.6,249.48,2.4049]
[1732497072115,15.2666,249.6,249.5,8.08280375]
[1732497072457,15.2666,249.6,249.47,8.08280375]
[1732497072610,15.2666,249.6,249.46,8.08280375]
[1732497072811,15.2666,249.6,249.36,23.21200375]
[1732497072812,20.0,249.57,249.44,8.08280375]
[1732497073113,30.120084,249.56,249.4,8.08280375]
[1732497073324,20.0,249.51,249.36,8.08280375]
[1732497073724,20.0,249.51,249.38,8.08280375]
[1732497073910,20.0,249.52,249.38,8.08280375]
[1732497074408,20.0,249.52,249.4,8.08280375]
[1732497074609,20.0,249.52,249.38,8.08280375]
[1732497074916,20.0,249.52,249.37,8.08280375]
[1732497075318,20.0,249.52,249.39,8.08280375]
[1732497075736,20.0,249.52,249.38,8.08280375]
[1732497076220,20.0,249.52,249.39,8.08280375]
[1732497076640,20.0,249.52,249.4,8.08280375]
[1732497076936,20.0,249.52,249.39,8.08280375]
[1732497077312,20.0,249.52,249.36,2.4061]
[1732497077313,20.0,249.52,249.41,8.08280375]
[1732497077519,16.6079,249.55,249.44,8.08280375]
[1732497077723,16.6079,249.55,249.45,8.08280375]
[1732497078142,16.6079,249.55,249.44,8.08280375]
[1732497078326,16.6079,249.55,249.43,8.08280375]
[1732497078722,16.6079,249.55,249.42,8.08280375]
[1732497079321,16.6079,249.55,249.44,8.08280375]
[1732497079928,16.6079,249.55,249.45,8.08280375]
[1732497080129,16.6079,249.55,249.44,8.08280375]
[1732497080328,16.6079,249.55,249.39,8.08280375]
[1732497080749,16.6079,249.55,249.4,8.08280375]
[1732497080950,23.776884,249.54,249.38,8.08280375]
[1732497081119,23.776884,249.5,249.35,8.08280375]
[1732497081319,16.5209,249.49,249.36,8.08280375]
[1732497081634,16.5209,249.49,249.37,8.08280375]
[1732497082017,16.5209,249.49,249.37,10.48870375]
[1732497082951,16.5209,249.49,249.41,8.08280375]
[1732497083121,16.5209,249.49,249.37,2.4059]
[1732497083122,16.5209,249.49,249.42,8.08280375]
[1732497083638,16.5209,249.49,249.43,8.08280375]
[1732497083841,16.5209,249.49,249.44,8.08280375]
[1732497084048,16.5209,249.49,249.43,8.08280375]
[1732497084551,16.5209,249.49,249.44,8.08280375]
[1732497085555,16.5209,249.49,249.44,10.48810375]
[1732497085859,15.2611,249.54,249.48,8.08280375]
[1732497086063,15.2611,249.6,249.52,8.08280375]
[1732497086566,15.2611,249.6,249.53,8.08280375]
[1732497086763,15.2611,249.6,249.55,8.08280375]
[1732497087062,15.2611,249.6,249.53,8.08280375]
[1732497087457,15.2611,249.6,249.53,10.48720375]
[1732497088364,15.2611,249.6,249.5,8.08280375]
[1732497088864,15.2611,249.6,249.51,8.08280375]
[1732497089362,15.2611,249.6,249.49,8.08280375]
[1732497089538,15.2611,249.6,249.5,2.4048]
[1732497089863,15.2611,249.6,249.54,8.08280375]
[1732497090066,15.2611,249.6,249.57,8.08280375]
[1732497090360,6.5213,249.69,249.57,8.08280375]
[1732497090960,6.5213,249.69,249.5,8.4168]
[1732497090961,6.5213,249.69,249.59,8.08280375]
[1732497091961,6.5213,249.69,249.58,2.404]
[1732497091962,6.5213,249.69,249.58,8.08280375]
[1732497092136,6.5213,249.69,249.56,10.48690375]
[1732497092337,6.5213,249.69,249.56,2.4041]
[1732497093268,6.5213,249.69,249.58,8.08280375]
[1732497094159,6.5213,249.69,249.59,2.4039]
[1732497095069,6.5213,249.69,249.6,8.08280375]
[1732497095569,15.0862,249.68,249.54,8.08280375]
[1732497096952,20.0,249.65,249.54,8.08280375]
[1732497097160,20.0,249.65,249.54,10.48720375]
[1732497097860,20.0,249.61,249.45,10.48800375]
[1732497098045,6.0847,249.6,249.45,2.4052]
[1732497098370,15.0862,249.56,249.42,2.4055]
[1732497098578,20.0,249.53,249.39,8.08280375]
[1732497098738,20.0,249.53,249.39,10.48860375]
[1732497098938,15.0862,249.56,249.43,8.08280375]
[1732497100160,15.0862,249.56,249.44,2.4053]
[1732497100374,15.0862,249.56,249.46,12.92941418]
[1732497100669,15.0862,249.56,249.5,12.92941418]
[1732497100875,6.0847,249.6,249.53,12.92941418]
[1732497101370,16.3723,249.62,249.53,12.92941418]
[1732497101951,16.3723,249.62,249.54,2.4044]
[1732497102283,16.3723,249.62,249.55,12.92941418]
[1732497103070,16.3723,249.62,249.55,15.33361418]
[1732497103274,16.3723,249.62,249.57,12.92941418]
[1732497103797,6.1091,249.66,249.58,12.92941418]
[1732497103946,15.2123,249.67,249.59,12.92941418]
[1732497104353,15.2123,249.67,249.59,2.4038]
[1732497104573,15.2123,249.67,249.52,6.0115]
[1732497104574,15.2123,249.67,249.56,20.0]
[1732497104768,15.2123,249.67,249.56,32.92941418]
[1732497104969,15.2123,249.67,249.57,12.92941418]
[1732497105362,15.2123,249.67,249.56,12.92941418]
[1732497105564,15.2123,249.67,249.55,12.92941418]
[1732497105974,15.2123,249.67,249.56,2.4042]
[1732497107359,15.2123,249.67,249.56,12.92941418]
[1732497107769,15.2123,249.67,249.55,12.92941418]
[1732497107977,15.2123,249.67,249.53,12.92941418]
[1732497108372,15.2123,249.67,249.54,2.4044]
[1732497109474,15.2123,249.67,249.55,12.92941418]
[1732497110169,15.2123,249.67,249.53,12.92941418]
[1732497110367,23.776884,249.66,249.49,15.33431418]
[1732497111369,15.2123,249.67,249.51,12.92941418]
[1732497112459,15.2123,249.67,249.52,2.4046]
[1732497113787,30.304884,249.66,249.51,20.0]
[1732497114565,23.776884,249.62,249.44,15.33471418]
[1732497114773,20.0,249.59,249.44,15.33471418]
[1732497115371,20.0,249.59,249.46,12.92941418]
[1732497115771,20.0,249.59,249.47,2.405]
[1732497116477,20.0,249.59,249.45,2.4052]
[1732497116683,45.776584,249.58,249.45,20.0]
[1732497119305,45.776584,249.58,249.42,15.33481418]
[1732497120403,45.776584,249.58,249.36,18.94471418]
[1732497120404,45.776584,249.58,249.43,8.08133153]
[1732497121282,45.776584,249.58,249.44,20.0]
[1732497122303,45.776584,249.58,249.44,22.4053]
[1732497122509,45.776584,249.58,249.45,8.08133153]
[1732497123114,21.9997,249.58,249.47,8.08133153]
[1732497123286,21.9997,249.58,249.49,8.08133153]
[1732497123608,21.9997,249.58,249.5,2.4048]
[1732497123911,21.9997,249.58,249.51,8.08133153]
[1732497124109,15.4824,249.58,249.53,8.08133153]
[1732497125012,21.1657,249.64,249.55,8.08133153]
[1732497125196,15.1569,249.64,249.59,8.08133153]
[1732497125515,21.3819,249.7,249.61,8.08133153]
[1732497126330,15.3731,249.7,249.65,8.08133153]
[1732497126521,15.3731,249.7,249.67,8.08133153]
[1732497126692,23.008,249.76,249.67,8.08133153]
[1732497127198,23.008,249.76,249.65,8.08133153]
[1732497127393,23.008,249.76,249.65,10.48453153]
[1732497127794,23.008,249.76,249.63,2.4035]
[1732497128120,23.008,249.76,249.61,10.48493153]
[1732497128292,23.008,249.76,249.65,12.90709118]
[1732497128892,23.008,249.76,249.63,12.90709118]
[1732497129195,23.008,249.76,249.61,35.31069118]
[1732497129717,23.008,249.76,249.63,15.31059118]
[1732497130015,23.008,249.76,249.65,12.90709118]
[1732497130410,23.008,249.76,249.63,15.31059118]
[1732497132230,23.008,249.76,249.61,32.90709118]
[1732497132402,23.008,249.76,249.63,12.90709118]
[1732497133138,23.008,249.76,249.61,32.90709118]
[1732497133512,23.008,249.76,249.64,2.4034]
[1732497134130,23.008,249.76,249.61,35.31069118]
[1732497134638,23.776884,249.75,249.61,35.31069118]
[1732497134805,20.0,249.72,249.59,15.31099118]
[1732497135006,20.0,249.72,249.59,2.4039]
[1732497136134,23.776884,249.71,249.57,12.90709118]
[1732497136314,23.776884,249.71,249.55,15.31129118]
[1732497138124,20.0,249.73,249.61,12.90709118]
[1732497138746,23.776884,249.72,249.57,12.90709118]
[1732497139546,20.0,249.73,249.61,12.90709118]
[1732497140340,23.008,249.76,249.49,31.7712]
[1732497140341,23.008,249.76,249.63,12.90709118]
[1732497141044,23.008,249.76,249.56,32.90709118]
[1732497141731,20.0,249.73,249.56,32.90709118]
[1732497142036,20.0,249.73,249.56,35.31119118]
[1732497142430,16.3143,249.72,249.56,35.31119118]
[1732497142741,16.3143,249.72,249.61,12.90709118]
[1732497143643,16.3143,249.72,249.61,15.31079118]
[1732497144122,16.3143,249.72,249.59,12.90709118]
[1732497144329,16.3143,249.72,249.57,15.31109118]
[1732497144539,10.0,249.78,249.51,12.90709118]
[1732497144540,36.1765,249.68,249.51,12.90709118]
[1732497144720,36.1765,249.68,249.5,12.90709118]
[1732497145544,36.1765,249.68,249.52,12.90709118]
[1732497145756,36.1765,249.68,249.55,12.90709118]
[1732497146258,36.1765,249.68,249.53,2.4045]
[1732497146259,36.1765,249.68,249.53,15.31159118]
[1732497148335,36.1765,249.68,249.52,8.07518034]
[1732497148859,36.1765,249.68,249.51,10.47978034]
[1732497150330,36.1765,249.68,249.53,8.07518034]
[1732497151063,36.1765,249.68,249.51,8.07518034]
[1732497151558,36.1765,249.68,249.53,8.07518034]
[1732497151754,36.1765,249.68,249.55,8.07518034]
[1732497153346,36.1765,249.68,249.56,2.4042]
[1732497155842,36.1765,249.68,249.51,28.07518034]
[1732497156242,36.1765,249.68,249.49,10.48008034]
[1732497156460,16.0731,249.63,249.49,2.4049]
[1732497156667,16.0731,249.63,249.39,19.55231487]
[1732497156668,6.5883,249.59,249.41,8.07518034]
[1732497156847,16.0731,249.58,249.41,10.48078034]
[1732497157249,16.0731,249.58,249.41,2.4056]
[1732497157462,16.0731,249.58,249.45,8.07518034]
[1732497157649,16.0731,249.58,249.46,8.07518034]
[1732497158052,16.0731,249.58,249.47,2.405]
[1732497158374,16.0731,249.58,249.45,10.48038034]
[1732497158868,16.0731,249.58,249.45,2.4052]
[1732497159165,20.0,249.55,249.38,34.25796434]
[1732497159348,20.0,249.55,249.38,2.4059]
[1732497159549,20.0,249.5,249.36,2.406]
[1732497159858,16.0731,249.49,249.33,2.4063]
[1732497160239,16.0731,249.49,249.33,10.48148034]
[1732497160399,16.0731,249.49,249.35,8.07518034]
[1732497160603,16.0731,249.49,249.36,8.07518034]
[1732497160902,16.0731,249.49,249.35,8.07518034]
[1732497161684,16.0731,249.49,249.33,8.07518034]
[1732497161890,20.0,249.46,249.33,2.4064]
[1732497162086,20.0,249.46,249.32,0.02135851]
[1732497162394,6.3439,249.45,249.32,0.02135851]
[1732497162793,6.3439,249.45,249.32,8.09653885]
[1732497162990,6.3439,249.45,249.32,0.02135851]
[1732497163605,6.3439,249.45,249.32,10.50303885]
[1732497164110,6.3439,249.45,249.34,8.07518034]
[1732497164314,6.3439,249.45,249.32,2.42785851]
[1732497164315,6.3439,249.45,249.36,8.07518034]
[1732497164810,6.3439,249.45,249.34,8.07518034]
[1732497165201,6.3439,249.45,249.36,8.07518034]
[1732497166016,6.3439,249.45,249.32,0.02135851]
[1732497166902,6.3439,249.45,249.32,8.09653885]
[1732497167297,6.3439,249.45,249.34,8.07518034]
[1732497168493,6.3439,249.45,249.35,2.4062]
[1732497168721,6.3439,249.45,249.38,8.07518034]
[1732497169430,16.0731,249.49,249.42,8.07518034]
[1732497169911,16.0731,249.49,249.36,8.07518034]
[1732497170426,16.0731,249.49,249.37,2.406]
[1732497171115,16.0731,249.49,249.38,8.07518034]
[1732497172609,16.0731,249.49,249.4,8.07518034]
[1732497173571,16.0731,249.49,249.42,8.07518034]
[1732497173998,16.0731,249.49,249.41,2.4056]
[1732497174694,16.0731,249.49,249.4,10.48088034]
[1732497174991,16.0731,249.49,249.44,8.07518034]
[1732497175256,16.0731,249.49,249.46,8.07518034]
[1732497175708,16.0731,249.49,249.46,10.48028034]
[1732497176919,15.259,249.55,249.46,10.48028034]
[1732497177118,15.259,249.55,249.48,8.07518034]
[1732497177524,15.259,249.55,249.47,8.07518034]
[1732497177827,15.259,249.55,249.45,8.07518034]
[1732497178140,15.259,249.55,249.47,8.07518034]
[1732497179123,15.259,249.55,249.49,8.07518034]
[1732497179838,15.259,249.55,249.51,8.07518034]
[1732497180223,15.259,249.55,249.5,8.07518034]
[1732497180650,15.259,249.55,249.48,10.48018034]
[1732497181026,15.259,249.55,249.48,8.07518034]
[1732497181230,15.259,249.55,249.48,10.48008034]
[1732497182132,15.259,249.55,249.48,8.07518034]
[1732497182327,15.259,249.55,249.46,8.07518034]
[1732497182532,15.259,249.55,249.48,8.07518034]
[1732497182831,6.4033,249.59,249.52,8.07518034]
[1732497183039,6.4033,249.59,249.5,8.07518034]
[1732497183856,6.4033,249.59,249.51,2.4047]
[1732497184046,6.4033,249.59,249.5,8.07518034]
[1732497184354,6.4033,249.59,249.5,10.47998034]
[1732497185444,6.4033,249.59,249.5,8.07518034]
[1732497185639,6.4033,249.59,249.48,8.07518034]
[1732497186427,15.9423,249.61,249.48,8.07518034]
[1732497186428,15.9423,249.61,249.55,8.07518034]
[1732497186631,6.1234,249.65,249.59,8.07518034]
[1732497187664,15.7982,249.67,249.57,8.07518034]
[1732497187859,15.7982,249.67,249.59,8.07518034]
[1732497188063,15.7982,249.67,249.59,10.47908034]
[1732497188954,15.7982,249.67,249.57,10.47918034]
[1732497189459,15.7982,249.67,249.57,8.07518034]
[1732497189758,15.7982,249.67,249.55,2.4042]
[1732497189759,15.7982,249.67,249.55,10.47938034]
[1732497190854,15.7982,249.67,249.57,8.07518034]
[1732497191446,15.7982,249.67,249.59,8.07518034]
[1732497191764,15.7982,249.67,249.61,8.07518034]
[1732497191964,21.6837,249.73,249.63,8.07518034]
[1732497192653,21.6837,249.73,249.56,8.07518034]
[1732497193250,20.0,249.7,249.54,8.07518034]
[1732497193457,20.0,249.69,249.54,8.07518034]
[1732497194269,15.5603,249.68,249.52,8.07518034]
[1732497194574,6.5851,249.66,249.53,20.0]
[1732497195178,23.776884,249.65,249.48,10.48008034]
[1732497195362,20.0,249.61,249.46,10.48028034]
[1732497195668,20.0,249.53,249.4,8.07518034]
[1732497195843,20.0,249.51,249.36,10.48128034]
[1732497196042,16.3638,249.5,249.34,10.48138034]
[1732497196239,6.5912,249.46,249.32,0.02135851]
[1732497196460,16.3638,249.42,249.32,0.02135851]
[1732497196757,20.0,249.39,249.32,0.02135851]
[1732497196961,20.0,249.35,249.2,8.07518034]
[1732497197152,20.0,249.35,249.18,10.48298034]
[1732497197457,20.0,249.31,249.16,8.07518034]
[1732497198173,20.0,249.31,249.05,6.4805]
[1732497198174,23.776884,249.3,249.18,8.07518034]
[1732497198353,20.0,249.31,249.19,12.95490594]
[1732497198549,20.0,249.27,249.15,12.95490594]
[1732497198849,20.0,249.27,249.16,12.95490594]
[1732497199054,23.776884,249.26,249.12,12.95490594]
[1732497199256,15.3542,249.25,249.14,12.95490594]
[1732497199980,15.3542,249.25,249.18,12.95490594]
[1732497200160,15.3542,249.25,249.19,12.95490594]
[1732497200558,15.3542,249.25,249.18,12.95490594]
[1732497201673,15.3542,249.25,249.15,12.95490594]
[1732497201974,23.776884,249.24,249.11,12.95490594]
[1732497202347,23.776884,249.24,249.1,12.95490594]
[1732497204649,6.5784,249.23,249.1,12.95490594]
[1732497205206,6.5784,249.23,249.11,12.95490594]
[1732497205751,6.5784,249.23,249.14,12.95490594]
[1732497205948,6.5784,249.23,249.17,12.95490594]
[1732497206174,6.5784,249.23,249.18,12.95490594]
[1732497206473,15.3542,249.25,249.17,12.95490594]
[1732497207069,15.3542,249.25,249.15,12.95490594]
[1732497207271,15.3542,249.25,249.13,12.95490594]
[1732497207574,15.3542,249.25,249.12,12.95490594]
[1732497207982,15.3542,249.25,249.13,12.95490594]
[1732497208474,15.3542,249.25,249.15,12.95490594]
[1732497208861,15.3542,249.25,249.16,12.95490594]
[1732497209058,15.3542,249.25,249.17,12.95490594]
[1732497209668,15.3542,249.25,249.18,12.95490594]
[1732497210677,15.3542,249.25,249.14,12.95490594]
[1732497210862,15.3542,249.25,249.12,12.95490594]
[1732497211048,15.3542,249.25,249.14,12.95490594]
[1732497211471,15.3542,249.25,249.16,12.95490594]
[1732497212184,15.3542,249.25,249.19,12.95490594]
[1732497212361,15.3542,249.25,249.2,12.95490594]
[1732497212721,15.3542,249.25,249.21,2.4076]
[1732497212855,6.4557,249.3,249.23,12.95490594]
[1732497213058,15.0841,249.33,249.25,12.95490594]
[1732497213881,15.0841,249.33,249.25,15.36200594]
[1732497214086,15.0841,249.33,249.27,12.95490594]
[1732497214379,15.0841,249.33,249.14,10.0]
[1732497214380,15.0841,249.33,249.23,12.95490594]
[1732497215682,15.0841,249.33,249.19,12.95490594]
[1732497216387,15.0841,249.33,249.21,12.95490594]
[1732497216552,15.0841,249.33,249.19,12.95490594]
[1732497216752,20.0,249.3,249.19,15.36260594]
[1732497216957,20.0,249.3,249.19,12.95490594]
[1732497218061,20.0,249.3,249.19,15.36260594]
[1732497218259,20.0,249.3,249.19,2.4077]
[1732497218459,20.0,249.3,249.16,8.09694655]
[1732497218765,20.0,249.3,249.18,8.09694655]
[1732497218963,20.0,249.3,249.2,8.09694655]
[1732497219169,15.0841,249.33,249.2,8.09694655]
[1732497219770,15.0841,249.33,249.22,8.09694655]
[1732497219974,15.0841,249.33,249.26,8.09694655]
[1732497220221,15.0841,249.33,249.24,8.09694655]
[1732497220560,15.0841,249.33,249.17,23.776884]
[1732497220561,15.0841,249.33,249.22,8.09694655]
[1732497220759,15.0841,249.33,249.2,28.09694655]
[1732497220958,15.0841,249.33,249.2,8.09694655]
[1732497221174,20.0,249.3,249.2,8.09694655]
[1732497222082,23.776884,249.32,249.18,8.09694655]
[1732497222291,23.776884,249.32,249.16,8.09694655]
[1732497222491,23.776884,249.32,249.14,8.09694655]
[1732497222682,6.2784,249.27,249.13,2.4083]
[1732497222984,23.776884,249.26,249.12,8.09694655]
[1732497223195,23.776884,249.26,249.11,2.4084]
[1732497223366,16.561,249.25,249.11,2.4084]
[1732497223791,16.561,249.25,249.12,8.09694655]
[1732497224157,16.561,249.25,249.14,8.09694655]
[1732497225769,16.561,249.25,249.18,8.09694655]
[1732497226268,16.561,249.25,249.18,10.50474655]
[1732497227568,16.561,249.25,249.2,8.09694655]
[1732497227977,16.561,249.25,249.18,8.09694655]
[1732497228790,16.561,249.25,249.18,10.50474655]
[1732497229568,16.561,249.25,249.2,8.09694655]
[1732497229771,16.267,249.31,249.2,8.09694655]
[1732497230570,16.267,249.31,249.18,10.50474655]
[1732497231697,20.0,249.28,249.14,2.4081]
[1732497231896,20.0,249.28,249.14,10.50504655]
[1732497232100,20.0,249.28,249.14,8.09694655]
[1732497232271,20.0,249.28,249.12,10.50524655]
[1732497233108,20.0,249.28,249.12,2.4083]
[1732497233392,20.0,249.28,249.12,8.09694655]
[1732497233595,20.0,249.28,249.14,8.09694655]
[1732497233991,20.0,249.28,249.18,8.09694655]
[1732497234491,16.267,249.31,249.18,8.09694655]
[1732497234696,16.267,249.31,249.18,10.50474655]
[1732497236400,16.267,249.31,249.18,8.09694655]
[1732497236709,16.267,249.31,249.18,10.50474655]
[1732497238283,16.267,249.31,249.25,0.513907]
[1732497243991,16.267,249.31,249.25,2.921107]
[1732497244187,16.267,249.31,249.25,0.513907]
[1732497245586,16.267,249.31,249.25,2.921007]
[1732497245785,16.267,249.31,249.25,0.513907]
[1732497247309,16.267,249.31,249.25,2.921107]
[1732497250296,16.267,249.31,249.25,0.513907]
[1732497250589,20.0,249.39,249.25,2.921107]
[1732497253497,2.92754707,249.38,249.25,2.921107]
[1732497254012,20.0,249.39,249.25,2.921107]
[1732497254399,21.5286,249.43,249.27,8.09694655]
[1732497254605,20.0,249.4,249.27,8.09694655]
[1732497255393,20.0,249.4,249.28,2.4069]
[1732497256799,20.0,249.4,249.26,2.407]
[1732497257006,20.0,249.4,249.25,2.921107]
[1732497258099,15.4012,249.39,249.25,2.921107]
[1732497258304,15.4012,249.39,249.25,0.513907]
[1732497258602,6.1274,249.33,249.25,0.513907]
[1732497261724,20.0,249.3,249.25,0.513907]
[1732497262103,20.0,249.26,249.25,0.513907]
[1732497262307,20.0,249.26,249.1,8.09694655]
[1732497262521,20.0,249.26,249.11,2.4085]
[1732497262904,20.0,249.26,249.09,2.4086]
[1732497262905,23.776884,249.25,249.09,2.4086]
[1732497263111,20.0,249.22,249.09,2.4086]
[1732497263301,20.0,249.22,249.07,2.4089]
[1732497264230,20.0,249.22,249.05,2.4091]
[1732497264609,20.0,249.22,249.06,8.09694655]
[1732497265301,20.0,249.22,249.07,2.4089]
[1732497265905,23.776884,249.21,249.05,2.409]
[1732497266234,20.0,249.18,249.05,2.409]
[1732497266401,15.7187,249.17,249.05,2.409]
[1732497267030,20.0,249.14,249.04,8.09694655]
[1732497267209,20.0,249.13,248.99,2.4097]
[1732497267410,6.1247,249.16,248.96,15.0]
[1732497267411,20.0,249.09,248.96,17.4099]
[1732497267620,20.0,249.09,248.98,8.09694655]
[1732497268124,20.0,249.13,248.98,8.09694655]
[1732497268607,20.0,249.09,248.98,10.50674655]
[1732497268807,20.0,249.09,248.98,8.09694655]
[1732497269341,39.190984,249.08,248.98,8.09694655]
[1732497269513,15.4141,249.08,249.0,8.09694655]
[1732497272019,15.4141,249.08,249.01,8.09694655]
[1732497272229,15.4141,249.08,249.05,8.09694655]
[1732497272535,15.4141,249.08,249.04,8.09694655]
[1732497272911,15.2032,249.15,249.05,8.09694655]
[1732497274314,15.2032,249.15,249.05,10.50604655]
[1732497274515,15.2032,249.15,249.07,8.09694655]
[1732497275418,15.2032,249.15,249.07,10.50584655]
[1732497275818,15.2032,249.15,249.11,8.09694655]
[1732497276137,15.2032,249.15,249.09,8.09694655]
[1732497276950,15.2032,249.15,249.09,10.50564655]
[1732497278041,16.1475,249.21,249.11,8.09694655]
[1732497278640,16.1475,249.21,249.09,10.50554655]
[1732497280153,16.1475,249.21,249.11,8.09694655]
[1732497281142,16.1475,249.21,249.13,8.09694655]
[1732497282118,16.1475,249.21,249.13,10.50524655]
[1732497282318,16.1475,249.21,249.11,8.09694655]
[1732497282518,16.1475,249.21,249.11,10.50544655]
[1732497285325,16.1475,249.21,249.13,8.09694655]
[1732497286322,16.1475,249.21,249.13,2.4083]
[1732497286945,16.1475,249.21,249.17,5.18507872]
[1732497288354,16.1475,249.21,249.16,8.09888784]
[1732497289331,16.1475,249.21,249.16,10.50688784]
[1732497289532,22.527,249.27,249.16,10.50688784]
[1732497290646,22.527,249.27,249.16,8.09888784]
[1732497291540,22.527,249.27,249.16,10.50688784]
[1732497293237,22.527,249.27,249.14,8.09888784]
[1732497293648,20.0,249.24,249.12,10.50728784]
[1732497293944,22.527,249.27,249.12,10.50728784]
[1732497294329,20.0,249.24,249.12,10.50728784]
[1732497296056,20.0,249.24,249.12,8.09888784]
[1732497297153,20.0,249.24,249.12,10.50728784]
[1732497298253,20.0,249.24,249.15,8.09888784]
[1732497298749,22.527,249.27,249.17,8.09888784]
[1732497299240,22.527,249.27,249.15,10.50698784]
[1732497300342,22.527,249.27,249.17,8.09888784]
[1732497300550,22.527,249.27,249.19,8.09888784]
[1732497300750,22.527,249.27,249.21,8.09888784]
[1732497301251,16.408,249.27,249.23,8.09888784]
[1732497301459,22.8117,249.33,249.23,8.09888784]
[1732497301645,22.8117,249.33,249.28,8.09888784]
[1732497301952,16.3767,249.33,249.28,8.09888784]
[1732497302133,16.3767,249.33,249.26,8.09888784]
[1732497302333,16.3767,249.33,249.24,8.09888784]
[1732497303455,16.3767,249.33,249.26,8.09888784]
[1732497304033,16.3767,249.33,249.24,8.09888784]
[1732497304235,16.3767,249.33,249.22,8.09888784]
[1732497304854,16.3767,249.33,249.24,8.09888784]
[1732497305452,16.3767,249.33,249.26,8.09888784]
[1732497305655,16.3767,249.33,249.28,8.09888784]
[1732497306040,16.3767,249.33,249.3,8.09888784]
[1732497306861,16.3767,249.33,249.28,8.09888784]
[1732497307760,22.669,249.39,249.3,8.09888784]
[1732497308055,22.669,249.39,249.28,10.50568784]
[1732497309333,22.669,249.39,249.22,6.0185]
[1732497309334,22.669,249.39,249.3,8.09888784]
[1732497309636,23.0151,249.45,249.36,8.09888784]
[1732497310661,23.0151,249.45,249.37,2.406]
[1732497310863,23.0151,249.45,249.38,8.09888784]
[1732497311053,22.0863,249.51,249.4,8.09888784]